bitfinex-derivatives/quotes_ETHF0:USTF0_20240905
["timestamp","ask_amount","ask_price","bid_price","bid_amount"]
[1725549616157,2.5712,2381.8,2381.3,3.62775]
[1725549616650,2.99108,2381.8,2381.3,3.62775]
[1725549616854,0.41989,2381.7,2381.3,3.62775]
[1725549617057,2.99107,2381.8,2381.4,0.41993]
[1725549617253,2.99107,2381.8,2381.3,0.41994]
[1725549617460,0.41989,2381.7,2381.3,0.41994]
[1725549617963,6.19887,2381.8,2381.4,0.41993]
[1725549618159,0.41992,2381.5,2381.1,0.41999]
[1725549618463,0.41991,2381.6,2381.2,0.41997]
[1725549618661,5.779,2381.8,2381.0,3.33]
[1725549618962,5.779,2381.8,2381.0,0.42]
[1725549618963,4.25762,2381.5,2381.0,0.42]
[1725549619263,4.25762,2381.5,2380.7,4.38772526]
[1725549619264,2.5712,2381.8,2381.2,6.1178]
[1725549619459,2.5712,2381.8,2381.7,0.41988]
[1725549619663,0.00630902,2381.9,2381.8,0.41987]
[1725549620162,0.00630902,2381.9,2381.8,3.62767]
[1725549620560,3.62753,2382.6,2381.8,10.3162]
[1725549620861,3.73567284,2382.9,2382.3,0.41976]
[1725549620862,1.2454,2382.5,2382.3,0.41976]
[1725549621164,1.2454,2382.5,2382.1,6.74722207]
[1725549621470,1.2454,2382.5,2382.1,3.41903891]
[1725549621655,1.25169564,2382.5,2382.1,3.84513455]
[1725549621962,1.25169564,2382.5,2382.1,3.21409564]
[1725549622159,0.41977,2382.4,2382.1,3.21409564]
[1725549622560,1.69378,2382.3,2382.1,0.00629564]
[1725549622763,1.671,2382.2,2382.1,0.00629564]
[1725549622959,5.8686,2382.2,2382.1,0.00629564]
[1725549623162,0.41983,2382.1,2381.7,0.41987]
[1725549623469,0.41982,2382.1,2381.3,6.1178]
[1725549623768,0.41982,2382.1,2381.7,0.41988]
[1725549624068,1.2512,2382.2,2381.3,6.1178]
[1725549624069,1.2512,2382.2,2381.5,0.41991]
[1725549624266,3.2078,2382.0,2381.6,0.00629564]
[1725549624562,0.41982,2382.1,2381.7,0.41988]
[1725549624870,0.41982,2382.1,2381.6,0.00629564]
[1725549624871,0.41987,2381.8,2381.6,0.00629564]
[1725549625066,0.41984,2382.0,2381.6,0.00629564]
[1725549625268,3.2078,2382.1,2381.6,0.00629564]
[1725549625269,0.41985,2381.9,2381.6,0.42619564]
[1725549625778,3.2078,2382.1,2381.6,0.42619564]
[1725549625779,1.3055,2381.8,2381.6,0.42619564]
[1725549626172,1.3055,2381.8,2381.7,0.41988]
[1725549626363,1.3055,2381.8,2381.6,0.42618564]
[1725549626766,1.3055,2381.8,2381.6,0.00629564]
[1725549626959,1.72538,2381.8,2381.6,0.00629564]
[1725549627264,5.24812,2381.7,2381.2,4.104]
[1725549627468,0.41993,2381.5,2381.2,0.41997]
[1725549627663,4.5133,2381.8,2380.7,9.53107624]
[1725549627664,4.5133,2381.8,2381.1,3.2078]
[1725549627862,4.5133,2381.8,2381.5,0.41991]
[1725549627863,4.93317,2381.8,2381.5,0.41991]
[1725549628066,1.3055,2381.8,2381.6,0.4199]
[1725549628371,1.3055,2381.8,2381.5,0.00629564]
[1725549628867,1.3055,2381.8,2381.2,0.41996]
[1725549628868,4.1984,2381.7,2381.2,0.41996]
[1725549629068,0.41993,2381.5,2381.2,0.41996]
[1725549629266,0.41991,2381.6,2380.8,3.39791074]
[1725549629467,0.41991,2381.6,2381.3,0.41994]
[1725549629669,0.41994,2381.4,2381.2,0.41997]
[1725549629966,1.74096,2381.3,2381.1,0.42628564]
[1725549630167,1.321,2381.3,2381.1,0.42628564]
[1725549630361,1.321,2381.3,2381.1,0.00629564]
[1725549630562,1.74096,2381.3,2381.1,0.42628564]
[1725549630773,4.61917,2381.2,2381.1,0.00629564]
[1725549631065,4.61917,2381.2,2380.2,1.3728]
[1725549631066,1.04998,2381.1,2380.2,1.3728]
[1725549631369,1.04998,2381.1,2380.5,0.42008]
[1725549631370,0.42006,2380.8,2380.5,0.42008]
[1725549631577,1.321,2380.7,2380.2,1.58674934]
[1725549631873,1.74735564,2380.7,2380.2,1.58674934]
[1725549632067,0.4201,2380.5,2380.1,3.2078]
[1725549632277,0.4201,2380.5,2380.2,0.42014]
[1725549632769,0.4201,2380.5,2380.1,3.2078]
[1725549632770,1.2997,2380.6,2380.4,0.42011]
[1725549632961,1.2997,2380.6,2380.1,3.2078]
[1725549633464,0.42014,2380.3,2380.1,3.2078]
[1725549633668,3.2078,2380.4,2379.8,0.4202]
[1725549633869,0.42017,2380.1,2379.7,0.42024]
[1725549634073,1.2458,2380.0,2379.8,0.42022]
[1725549634265,1.2458,2380.0,2379.9,0.4202]
[1725549634562,1.2458,2380.0,2379.8,0.42021]
[1725549634768,1.2458,2380.0,2379.9,0.4202]
[1725549634975,1.2458,2380.0,2379.8,0.42021]
[1725549635172,1.2458,2380.0,2379.7,0.42023]
[1725549636276,1.2458,2380.0,2379.9,0.4202]
[1725549636671,1.2458,2380.0,2379.7,0.42023]
[1725549636877,1.2458,2380.0,2379.5,3.2078]
[1725549637072,1.2458,2380.0,2379.4,4.104]
[1725549637073,0.42022,2379.9,2379.4,0.42028]
[1725549637275,0.42022,2379.9,2379.5,0.42027]
[1725549638374,0.42023,2379.8,2379.4,0.42028]
[1725549638861,0.42023,2379.8,2379.5,0.42027]
[1725549639776,0.42023,2379.8,2379.5,0.42026]
[1725549640170,1.2458,2380.0,2379.9,0.4202]
[1725549640566,1.2458,2380.0,2379.5,3.2078]
[1725549640779,1.2458,2380.0,2379.4,2.91]
[1725549640973,2.29629,2380.0,2379.5,3.2078]
[1725549641181,0.42024,2379.7,2379.4,0.42028]
[1725549641566,0.42023,2379.8,2379.5,0.42027]
[1725549641768,1.666,2380.0,2379.7,0.42023]
[1725549641970,0.42022,2379.8,2379.6,0.42025]
[1725549642170,0.42021,2379.9,2379.7,0.42024]
[1725549642783,1.666,2380.0,2379.7,0.42024]
[1725549643081,1.2458,2380.0,2379.8,0.42021]
[1725549644267,1.2458,2380.0,2379.9,0.4202]
[1725549644475,1.2458,2380.0,2379.8,0.42021]
[1725549644670,1.2458,2380.0,2379.9,0.4202]
[1725549645177,1.2458,2380.0,2379.8,0.42021]
[1725549645790,4.6218,2379.9,2379.5,3.2078]
[1725549645973,0.4202,2379.9,2379.6,0.42025]
[1725549646283,0.42021,2379.9,2379.6,0.42025]
[1725549646581,0.42025,2379.7,2379.5,0.42026]
[1725549646781,3.2078,2379.9,2379.4,0.42028]
[1725549646782,0.42026,2379.6,2379.4,0.42028]
[1725549646982,0.4203,2379.4,2379.2,0.42032]
[1725549647180,0.4203,2379.4,2378.9,1.05094]
[1725549647181,0.42026,2379.6,2379.4,0.42028]
[1725549647480,0.00629564,2379.7,2379.6,0.42025]
[1725549647879,0.00629564,2379.7,2379.1,6.1178]
[1725549648075,0.42027,2379.5,2379.1,3.2078]
[1725549648280,1.78197,2379.6,2379.4,0.42029]
[1725549648471,2.41235,2379.6,2379.2,3.2078]
[1725549648677,0.42028,2379.5,2379.3,0.4203]
[1725549649083,4.62268,2379.5,2379.3,0.4203]
[1725549649287,4.2024,2379.5,2379.3,0.4203]
[1725549649482,4.2024,2379.5,2379.2,0.42031]
[1725549649483,4.2024,2379.4,2379.2,0.42031]
[1725549649683,4.2024,2379.4,2378.8,10.4213487]
[1725549649684,0.42033,2379.2,2379.1,0.42033]
[1725549649873,1.3379,2379.4,2379.3,0.42031]
[1725549650073,0.00629564,2379.7,2379.6,0.42025]
[1725549650384,0.00629564,2379.7,2379.6,1.47089]
[1725549650681,0.00629564,2379.7,2379.6,0.42025]
[1725549654583,0.00629564,2379.7,2379.5,0.42027]
[1725549655086,0.00629564,2379.7,2379.4,4.95328]
[1725549655389,0.00629564,2379.7,2379.4,4.533]
[1725549655689,0.42654564,2379.7,2379.4,1.74548]
[1725549656583,0.42654564,2379.7,2379.4,1.3252]
[1725549656584,0.42027,2379.5,2379.4,1.3252]
[1725549656791,0.42027,2379.6,2379.4,1.3252]
[1725549656991,0.42027,2379.6,2379.4,1.74549]
[1725549657192,0.42654564,2379.7,2379.5,0.42027]
[1725549658284,0.00629564,2379.7,2379.6,0.42025]
[1725549659783,0.42653564,2379.7,2379.4,1.3252]
[1725549660091,0.42653564,2379.7,2379.2,0.42032]
[1725549660092,0.42029,2379.5,2379.2,0.42032]
[1725549660287,1.74707,2379.6,2379.4,0.42029]
[1725549660887,0.42027,2379.5,2379.3,0.42029]
[1725549661287,1.74707,2379.6,2379.4,0.42029]
[1725549661493,0.42027,2379.5,2379.3,0.42029]
[1725549661694,1.74707,2379.6,2379.4,0.42029]
[1725549662392,1.3268,2379.6,2379.5,0.42027]
[1725549662697,0.42653564,2379.7,2379.5,0.42026]
[1725549662887,0.00629564,2379.7,2379.6,2.60025]
[1725549663190,0.00629564,2379.7,2379.6,3.65089]
[1725549663399,0.00629564,2379.7,2379.6,7.85329]
[1725549663594,0.00629564,2379.7,2379.6,3.65089]
[1725549663893,0.00629564,2379.7,2379.6,2.60025]
[1725549664082,0.00629564,2379.7,2379.6,14.90393]
[1725549664288,0.4201,2380.5,2380.3,0.42012]
[1725549664489,0.42009,2380.6,2380.3,0.42012]
[1725549664691,0.4201,2380.5,2380.2,0.42014]
[1725549664995,1.0502,2380.6,2380.1,1.73546]
[1725549665199,1.30319564,2380.6,2380.3,0.42013]
[1725549665386,1.30319564,2380.6,2380.1,5.86571]
[1725549665587,0.00629564,2380.6,2380.2,2.18]
[1725549665797,0.00629564,2380.6,2380.5,0.4201]
[1725549665997,0.00629564,2380.6,2380.5,3.3201]
[1725549666196,2.14929767,2381.2,2381.0,0.42]
[1725549666396,2.14929767,2381.2,2380.8,2.9]
[1725549666888,2.14929767,2381.2,2381.0,3.6278]
[1725549667092,2.14929767,2381.2,2381.0,3.2078]
[1725549667400,2.14929767,2381.2,2381.1,0.41999]
[1725549667595,2.14929767,2381.2,2381.1,1.74809]
[1725549667797,2.14929767,2381.2,2381.1,1.95968383]
[1725549667998,2.14929767,2381.2,2381.1,12.15968383]
[1725549668294,3.22373141,2381.6,2381.5,0.41992]
[1725549668495,3.22373141,2381.6,2381.5,12.52772]
[1725549668705,3.22373141,2381.6,2381.5,10.72692]
[1725549668904,3.22373141,2381.6,2381.5,16.72692]
[1725549669096,3.22373141,2381.6,2381.5,10.72692]
[1725549669296,3.22373141,2381.6,2381.5,3.62772]
[1725549669496,3.22373141,2381.6,2381.5,16.72692]
[1725549670399,3.76731562,2381.8,2381.7,0.41988]
[1725549670400,0.00629564,2381.8,2381.7,0.41988]
[1725549670809,0.00629564,2381.8,2381.7,4.61828]
[1725549671394,0.00629564,2381.8,2381.5,6.1078]
[1725549671600,0.00629564,2381.8,2381.6,0.41989]
[1725549671898,0.00629564,2381.8,2381.5,6.1078]
[1725549672092,0.00629564,2381.8,2381.5,3.2078]
[1725549672492,0.00629564,2381.8,2381.6,0.41989]
[1725549672696,0.00629564,2381.8,2381.7,0.41988]
[1725549673500,0.00629564,2381.8,2381.7,4.61828]
[1725549674105,0.00629564,2381.8,2381.7,10.61828]
[1725549674508,0.00629564,2381.8,2381.7,4.61828]
[1725549674905,0.00629564,2381.8,2381.5,6.1078]
[1725549675113,0.00629564,2381.8,2381.7,0.41988]
[1725549675704,0.00629564,2381.8,2381.5,3.62771]
[1725549675910,0.00629564,2381.8,2381.6,0.4199]
[1725549676205,0.00629564,2381.8,2381.5,3.2078]
[1725549676513,1.69537564,2381.8,2381.5,3.2078]
[1725549676806,4.61829,2381.7,2381.5,3.2078]
[1725549677199,0.41989,2381.7,2381.5,3.2078]
[1725549678207,2.57859564,2381.8,2381.5,3.2078]
[1725549678421,2.57859564,2381.8,2381.2,0.41996]
[1725549678422,0.41993,2381.5,2381.2,0.41996]
[1725549678722,1.3742,2381.4,2381.3,0.41995]
[1725549679219,1.27549564,2381.8,2381.7,0.41988]
[1725549679411,0.00629564,2381.8,2381.7,0.41988]
[1725549680320,0.00629564,2381.8,2381.7,5.668]
[1725549680619,0.00629564,2381.8,2381.7,11.668]
[1725549681616,0.00629564,2381.8,2381.7,15.168]
[1725549681919,0.00629564,2381.8,2381.7,9.168]
[1725549682310,0.00629564,2381.8,2381.7,14.11828]
[1725549682510,0.00629564,2381.8,2381.7,0.41988]
[1725549682913,0.00629564,2381.8,2381.6,3.2078]
[1725549683119,0.00629564,2381.8,2381.7,0.41988]
[1725549683510,0.00629564,2381.8,2381.7,4.61828]
[1725549684314,4.20469564,2381.8,2381.6,3.2078]
[1725549684614,4.20469564,2381.8,2381.6,3.6277]
[1725549684615,1.30989564,2381.8,2381.6,3.6277]
[1725549684815,1.72976564,2381.8,2381.6,3.2078]
[1725549685224,1.30989564,2381.8,2381.6,3.6277]
[1725549685424,1.30989564,2381.8,2381.7,0.41988]
[1725549685725,1.30989564,2381.8,2381.6,3.2078]
[1725549686026,1.30989564,2381.8,2381.6,3.62769]
[1725549686921,1.30989564,2381.8,2381.6,3.2078]
[1725549687125,1.30989564,2381.8,2381.6,3.6277]
[1725549687520,0.41988,2381.7,2381.6,3.2078]
[1725549687720,0.41993,2381.5,2381.2,0.41996]
[1725549687927,3.2078,2381.4,2381.3,0.41995]
[1725549688114,1.04973,2381.7,2381.3,0.41995]
[1725549688316,0.41993,2381.5,2381.3,0.41995]
[1725549688512,0.41993,2381.5,2381.0,4.104]
[1725549688513,4.51769564,2381.8,2381.1,3.44037076]
[1725549688730,0.41989,2381.7,2381.1,3.44037076]
[1725549688922,0.41991,2381.6,2381.4,0.41993]
[1725549689317,4.61911,2381.6,2381.4,0.41993]
[1725549690225,4.61911,2381.6,2381.1,2.18]
[1725549690226,0.41995,2381.4,2381.1,2.18]
[1725549690424,1.3057,2381.3,2381.2,0.41997]
[1725549693130,1.3057,2381.3,2381.1,2.18]
[1725549693332,1.3057,2381.3,2381.1,0.41998]
[1725549693520,1.3057,2381.3,2381.2,0.41997]
[1725549693830,1.3057,2381.3,2381.2,0.62685438]
[1725549694029,1.3057,2381.3,2381.2,1.67679438]
[1725549694921,1.30989564,2381.8,2381.5,0.41991]
[1725549695123,1.3441,2381.7,2381.6,0.4199]
[1725549695520,5.5425,2381.7,2381.5,0.41991]
[1725549695724,1.3441,2381.7,2381.5,0.41991]
[1725549696218,1.3441,2381.7,2381.3,0.41994]
[1725549696219,3.62771,2381.6,2381.3,0.41994]
[1725549696424,0.41992,2381.5,2381.3,0.41994]
[1725549696633,3.2078,2381.6,2381.3,0.41995]
[1725549696823,0.41994,2381.4,2381.1,0.41998]
[1725549697028,0.41994,2381.4,2381.2,0.41997]
[1725549697331,0.41998,2381.2,2380.9,0.00629564]
[1725549697528,1.2637,2381.1,2380.9,0.42630564]
[1725549697830,1.2637,2381.1,2381.0,0.42001]
[1725549698538,1.2637,2381.1,2380.9,0.42631564]
[1725549698727,1.2637,2381.1,2380.9,0.00629564]
[1725549698923,1.2637,2381.1,2380.9,0.42631564]
[1725549699123,1.2637,2381.1,2381.0,0.42001]
[1725549700326,1.2637,2381.1,2380.9,0.00629564]
[1725549700933,1.2637,2381.1,2381.0,0.42001]
[1725549705340,3.2078,2381.6,2381.4,0.41993]
[1725549705538,1.3586,2381.6,2381.4,0.41992]
[1725549705731,1.3586,2381.6,2381.2,0.21136138]
[1725549705732,1.3586,2381.6,2381.5,0.41992]
[1725549706229,1.3586,2381.6,2381.4,0.41992]
[1725549706431,1.3586,2381.6,2381.3,7.388]
[1725549706432,1.3586,2381.6,2381.3,4.488]
[1725549706834,1.3586,2381.6,2381.4,0.41993]
[1725549707439,0.41993,2381.5,2381.2,0.41996]
[1725549707635,5.61617,2381.6,2381.1,0.20537529]
[1725549707838,0.41992,2381.5,2380.9,2.54059827]
[1725549708037,4.5664,2381.6,2381.0,1.05002]
[1725549708239,4.5664,2381.6,2381.4,0.41993]
[1725549708436,7.13145476,2381.6,2381.1,0.20978609]
[1725549708744,1.3586,2381.6,2381.4,0.41992]
[1725549709037,1.3586,2381.6,2381.1,1.04995]
[1725549709038,7.13146476,2381.6,2381.3,0.41995]
[1725549709242,0.41992,2381.5,2381.3,0.41995]
[1725549709430,2.14515476,2381.5,2381.3,0.41995]
[1725549709629,2.14515476,2381.5,2381.0,6.1078]
[1725549709630,0.41995,2381.4,2381.0,6.1078]
[1725549709829,3.2078,2381.3,2380.9,1.28649564]
[1725549710031,2.56514476,2381.2,2380.9,1.70651564]
[1725549710245,2.14515476,2381.1,2380.9,1.70651564]
[1725549710541,1.2705,2381.0,2380.9,0.42631564]
[1725549711139,11.24346476,2381.0,2380.9,0.00629564]
[1725549711339,11.7726419,2381.0,2380.9,0.00629564]
[1725549711533,0.42007,2380.7,2380.2,8.261]
[1725549711847,0.42007,2380.7,2379.8,2.40285]
[1725549711848,3.2078,2380.4,2379.8,4.104]
[1725549712043,5.36790933,2380.4,2379.8,4.5242]
[1725549712341,2.6498,2380.6,2379.8,4.104]
[1725549712342,5.78807933,2380.1,2379.8,4.104]
[1725549712537,5.78807933,2380.1,2379.7,0.42652564]
[1725549712737,5.36790933,2380.1,2379.9,0.42019]
[1725549712946,3.2078,2380.1,2379.7,2.90629564]
[1725549713132,3.2078,2380.1,2379.8,0.20564316]
[1725549713332,4.2016,2380.1,2379.7,0.00629564]
[1725549713535,3.2078,2379.9,2379.7,0.00629564]
[1725549713931,4.2024,2379.8,2379.7,0.00629564]
[1725549714342,4.62262,2379.8,2379.7,0.00629564]
[1725549714540,4.2024,2379.8,2379.7,0.00629564]
[1725549714742,1.3332,2379.8,2379.7,0.00629564]
[1725549714939,5.5356,2379.8,2379.7,0.00629564]
[1725549715241,5.95582,2379.8,2379.7,0.00629564]
[1725549715441,11.5356,2379.8,2379.0,1.257]
[1725549715644,11.5356,2379.8,2378.6,0.21413802]
[1725549715645,3.2078,2379.4,2378.6,0.21413802]
[1725549715842,0.42028,2379.5,2378.7,0.4204]
[1725549715843,3.2078,2379.1,2378.7,0.4204]
[1725549716537,3.2078,2379.1,2378.7,0.42669564]
[1725549718347,3.2078,2379.1,2378.8,0.42039]
[1725549718538,4.4994,2379.1,2378.7,0.00629564]
[1725549718736,4.4994,2379.1,2378.9,0.42037]
[1725549718936,4.4994,2379.1,2379.0,0.42036]
[1725549719136,1.2916,2379.1,2378.9,0.42037]
[1725549719343,1.2916,2379.1,2378.7,0.00629564]
[1725549719539,1.2916,2379.1,2378.9,0.42037]
[1725549719941,1.2916,2379.1,2378.8,0.42039]
[1725549720137,1.2916,2379.1,2379.0,0.42036]
[1725549720333,1.2916,2379.1,2378.7,0.00629564]
[1725549720543,1.2916,2379.1,2378.9,0.42036]
[1725549720847,1.2916,2379.1,2378.7,0.00629564]
[1725549721144,1.2916,2379.1,2378.8,0.42039]
[1725549721538,1.2916,2379.1,2378.7,0.00629564]
[1725549721846,3.2078,2378.9,2378.7,0.00629564]
[1725549722040,0.4204,2378.8,2378.7,0.00629564]
[1725549722240,4.6244,2378.8,2378.7,0.00629564]
[1725549722450,1.05104,2378.7,2378.1,0.42051]
[1725549722643,1.05104,2378.7,2377.5,1.05157]
[1725549722644,3.2078,2378.2,2377.5,7.3118]
[1725549722843,0.42054,2378.0,2377.7,0.42058]
[1725549723058,2.6252,2378.1,2377.6,1.05153]
[1725549723341,2.6252,2378.1,2377.5,2.9]
[1725549723544,3.04573,2378.1,2377.8,0.42057]
[1725549723944,4.2056,2378.0,2377.3,1.25787883]
[1725549724144,2.6252,2378.1,2377.4,1.05162]
[1725549724449,2.6252,2378.1,2377.4,4.25942]
[1725549724644,3.04572,2378.1,2377.8,0.42056]
[1725549724844,2.6252,2378.1,2377.9,0.42055]
[1725549725048,3.2078,2378.2,2378.1,0.42052]
[1725549725245,3.2078,2378.2,2377.6,2.33433]
[1725549725646,3.2078,2378.2,2378.0,0.42053]
[1725549726453,4.2048,2378.1,2377.5,0.21128389]
[1725549726647,0.42053,2378.1,2377.7,0.42058]
[1725549726849,1.2785,2378.0,2377.7,0.42058]
[1725549727345,1.2785,2378.0,2377.8,0.42057]
[1725549727847,1.2785,2378.0,2377.5,0.214966]
[1725549728146,0.42058,2377.8,2377.2,3.10976954]
[1725549728345,3.2078,2377.9,2377.1,4.5629]
[1725549728346,3.2078,2377.5,2377.1,3.62848]
[1725549728540,3.2078,2377.5,2376.9,6.4]
[1725549728541,1.78435,2377.4,2377.0,0.4207]
[1725549728742,2.6422,2377.4,2377.2,0.42067]
[1725549728951,2.6422,2377.4,2376.8,7.004]
[1725549729145,2.6422,2377.4,2377.2,0.42067]
[1725549729454,0.00630915,2377.7,2377.3,2.9]
[1725549729653,1.16550915,2379.3,2378.7,0.9986]
[1725549729851,1.16550915,2379.3,2379.2,2.9]
[1725549730043,1.16550915,2379.3,2377.6,1.0515]
[1725549730044,1.16550915,2379.3,2378.8,0.9986]
[1725549730245,1.16550915,2379.3,2378.7,0.9986]
[1725549730450,1.16550915,2379.3,2379.0,0.9986]
[1725549730652,0.00630915,2379.2,2378.9,0.9986]
[1725549730951,0.00630915,2379.2,2378.8,0.00630915]
[1725549731153,0.00630915,2379.2,2379.1,0.9986]
[1725549731357,6.00630915,2379.2,2378.9,0.9986]
[1725549731554,3.2078,2379.0,2378.8,0.00630915]
[1725549731756,3.2078,2379.0,2378.1,0.20918169]
[1725549731946,1.3877,2378.9,2378.5,0.9986]
[1725549732754,1.3877,2378.9,2378.2,3.6283]
[1725549732755,1.3877,2378.9,2378.3,0.42048]
[1725549732942,1.3877,2378.9,2378.6,0.9986]
[1725549733256,1.3877,2378.9,2378.4,0.9986]
[1725549733558,1.3093,2378.8,2378.4,0.9986]
[1725549734049,4.5171,2378.8,2378.4,0.9986]
[1725549736053,0.00630915,2379.2,2378.7,0.9986]
[1725549736054,3.2078,2379.1,2378.7,0.9986]
[1725549736253,3.2078,2379.1,2379.0,0.9986]
[1725549737550,3.2078,2379.1,2378.5,3.2078]
[1725549737551,13.411,2379.1,2378.5,3.2078]
[1725549737756,3.2078,2378.8,2378.5,0.9986]
[1725549738147,1.3098,2379.0,2378.6,0.9986]
[1725549738453,1.3098,2379.0,2378.8,0.9986]
[1725549738661,1.3098,2379.0,2378.7,0.9986]
[1725549739248,4.204,2378.9,2378.3,4.104]
[1725549739454,4.204,2378.9,2378.4,0.9986]
[1725549739455,1.3459,2378.9,2378.4,0.9986]
[1725549739867,1.3459,2378.9,2378.5,0.9986]
[1725549740153,1.3459,2378.9,2378.6,0.9986]
[1725549741151,1.3098,2379.0,2378.3,4.104]
[1725549741356,1.3098,2379.0,2378.8,0.9986]
[1725549741949,0.00630915,2379.2,2378.9,0.9986]
[1725549742153,0.00630915,2379.2,2379.1,1.41894]
[1725549742458,0.00630915,2379.2,2379.1,4.62674]
[1725549744064,0.00630915,2379.2,2379.1,10.84170195]
[1725549744970,9.15e-06,2379.2,2379.1,10.84170195]
[1725549745265,3.2078,2379.7,2379.6,0.42025]
[1725549745266,2.20920915,2379.7,2379.6,0.42025]
[1725549746155,2.20920915,2379.7,2379.1,6.32276195]
[1725549746354,2.20920915,2379.7,2379.4,0.42028]
[1725549746972,2.20920915,2379.7,2379.1,6.31336184]
[1725549747159,2.20920915,2379.7,2379.5,0.42026]
[1725549747462,2.20920915,2379.7,2379.6,0.42025]
[1725549749776,1.35510915,2379.9,2379.7,0.42024]
[1725549749968,0.00630915,2379.9,2379.8,0.42022]
[1725549750274,0.00630915,2379.9,2379.8,7.82962]
[1725549750566,0.00630915,2379.9,2379.8,3.62802]
[1725549750867,0.00630915,2379.9,2379.8,7.82962]
[1725549751067,0.00630915,2379.9,2379.8,14.88018]
[1725549751265,9.15e-06,2379.9,2379.8,15.93074]
[1725549753160,9.15e-06,2379.9,2379.8,3.62802]
[1725549754072,0.42020915,2379.9,2379.8,3.2078]
[1725549754275,0.42022,2379.8,2379.5,0.42026]
[1725549754569,9.15e-06,2379.9,2379.4,3.2078]
[1725549754771,0.42023,2379.8,2379.5,0.42027]
[1725549754967,9.15e-06,2379.9,2379.6,0.42025]
[1725549754968,0.42021915,2379.9,2379.6,0.42025]
[1725549755170,0.42022,2379.8,2379.5,0.42026]
[1725549755673,0.42021915,2379.9,2379.5,0.42026]
[1725549755974,9.15e-06,2379.9,2379.4,3.2078]
[1725549756475,9.15e-06,2379.9,2379.8,0.42022]
[1725549756770,9.15e-06,2379.9,2379.7,3.62803]
[1725549756972,9.15e-06,2379.9,2379.8,0.42022]
[1725549758067,0.42022,2379.8,2379.7,3.2078]
[1725549758373,0.42022,2379.8,2379.2,3.2078]
[1725549758374,0.42025,2379.7,2379.2,3.2078]
[1725549758576,9.15e-06,2379.9,2379.6,3.2078]
[1725549758873,0.42021915,2379.9,2379.8,0.42022]
[1725549759171,9.15e-06,2379.9,2379.7,0.42023]
[1725549759371,0.42021915,2379.9,2379.7,0.42022]
[1725549759566,0.42021915,2379.9,2379.4,0.42028]
[1725549759567,4.20240915,2379.9,2379.4,0.42028]
[1725549759773,0.42027,2379.6,2379.5,0.42027]
[1725549759965,0.42025,2379.7,2379.3,3.2078]
[1725549760166,0.42025,2379.7,2379.6,0.42025]
[1725549760370,1.3982,2379.8,2379.7,0.42024]
[1725549760573,0.42021915,2379.9,2379.7,0.42024]
[1725549760768,9.15e-06,2379.9,2379.8,0.42022]
[1725549761265,4.62180915,2379.9,2379.7,0.42022]
[1725549761469,4.62180915,2379.9,2379.4,1.05073]
[1725549761470,9.15e-06,2379.9,2379.8,0.42022]
[1725549762665,9.15e-06,2379.9,2379.6,3.2078]
[1725549762863,0.42031,2379.3,2379.1,0.42033]
[1725549763069,1.77903,2379.2,2379.0,0.42035]
[1725549763267,1.77903,2379.2,2378.9,3.21410915]
[1725549763268,0.42034,2379.1,2378.9,3.21410915]
[1725549763577,2.6721,2379.1,2378.9,0.42667915]
[1725549763775,3.09244,2379.1,2378.9,0.00630915]
[1725549764071,2.6721,2379.1,2378.9,0.00630915]
[1725549764271,2.6721,2379.1,2378.9,0.42668915]
[1725549764485,0.42036,2379.0,2378.9,0.00630915]
[1725549764773,0.42036,2379.0,2378.5,3.2078]
[1725549764774,0.42039,2378.9,2378.5,3.62824]
[1725549764982,0.42042,2378.7,2378.5,3.2078]
[1725549765169,0.42042,2378.7,2378.4,0.42045]
[1725549765568,3.2078,2378.8,2378.2,3.2078]
[1725549765771,1.3312,2378.6,2378.3,0.00630915]
[1725549765970,1.3312,2378.6,2378.4,0.42046]
[1725549766274,1.3312,2378.6,2378.3,0.42677915]
[1725549767873,1.2988,2378.5,2378.3,0.42677915]
[1725549768778,1.2988,2378.5,2378.4,0.42047]
[1725549768964,0.00630915,2378.7,2378.4,5.5401]
[1725549769170,0.00630915,2378.7,2378.5,3.62825]
[1725549769775,0.00630915,2378.7,2378.6,0.42043]
[1725549769971,0.00630915,2378.7,2378.6,1.47152]
[1725549770172,0.00630915,2378.7,2378.6,4.62443]
[1725549771566,0.00630915,2378.7,2378.5,3.62824]
[1725549771770,0.00630915,2378.7,2378.6,0.42043]
[1725549772876,0.00630915,2378.7,2378.6,4.62443]
[1725549773081,0.00630915,2378.7,2378.6,11.67552]
[1725549773273,0.00630915,2378.7,2378.6,10.62443]
[1725549774281,0.00630915,2378.7,2378.6,4.62443]
[1725549774479,0.00630915,2378.7,2378.6,0.42043]
[1725549775671,0.00630915,2378.7,2378.5,3.2078]
[1725549775876,0.00630915,2378.7,2378.5,3.62824]
[1725549776270,0.00630915,2378.7,2378.6,0.42043]
[1725549776469,0.00630915,2378.7,2378.5,3.62824]
[1725549776778,0.00630915,2378.7,2378.6,0.42043]
[1725549777174,0.00630915,2378.7,2378.5,3.62824]
[1725549777674,0.00630915,2378.7,2378.5,3.2078]
[1725549777981,0.00630915,2378.7,2378.6,0.42043]
[1725549779382,0.00630915,2378.7,2378.6,5.67552]
[1725549779785,0.00630915,2378.7,2378.6,5.15423]
[1725549779983,0.00630915,2378.7,2378.6,6.20532]
[1725549780374,0.00630915,2378.7,2378.6,0.42043]
[1725549780579,0.42673915,2378.7,2378.4,0.42046]
[1725549780785,0.42673915,2378.7,2378.3,0.42678915]
[1725549780786,0.5656,2378.6,2378.3,0.42678915]
[1725549781082,0.5656,2378.6,2378.4,0.42046]
[1725549781384,4.2048,2378.5,2378.3,0.00630915]
[1725549781574,0.42047,2378.4,2378.3,0.00630915]
[1725549781777,6.98167,2378.4,2377.7,3.2078]
[1725549781972,0.5674,2378.3,2377.7,4.25927]